Cogmind - Beta 15 @@@ ROGUE MODE // 2025.09.05 @ 07:24:57 Player: GermanMO Result: Destroyed by S-10 Pest with Light Assault Rifle Performance ------------- Evolutions (0) 0 Regions Visited (1) 200 Robots Destroyed (2) 10 Value Destroyed (20) 20 Prototype IDs (0) 0 Alien Tech Used (0) 0 Bonus (0) 0 TOTAL SCORE: 230 Bonus ------- None Cogmind --------- Core Integrity 0/250 Matter 227/300 Energy 99/100 System Corruption 0% Temperature Cool (0) Movement Core (100) Ox1 Location -10/Materials Parts ------- > --- POWER (1) -------- (None) > --- PROPULSION (2) --- (None) > --- UTILITY (2) ------ Small Storage Unit > --- WEAPON (2) ------- (None) > --- INVENTORY (8) ---- (None) Peak State ------------ > --- POWER ------------ (None) > --- PROPULSION ------- Aluminum Leg Aluminum Leg > --- UTILITY ---------- Small Storage Unit > --- WEAPON ----------- EM Pulse Gun Assault Rifle > --- INVENTORY -------- (None) [Rating: 5] Favorites ----------- Power Ion Engine Engine Ion Engine Propulsion Aluminum Leg Leg Aluminum Leg Utility Small Storage Unit Storage Small Storage Unit Weapon Assault Rifle Energy Gun EM Pulse Gun Ballistic Gun Assault Rifle Build | -11 -10 ------- Run | Yrd Mat Slots Evolved . | . . Power . | . . Propulsion . | . . Utility . | . . Weapon . | . . Parts Attached 6 | 3 3 Power 1 | 1 . Engine 1 | 1 . Core . | . . Reactor . | . . Propulsion 2 | 2 . Treads . | . . Leg 2 | 2 . Wheel . | . . Hover . | . . Flight . | . . Utility 1 | . 1 Device . | . . Storage 1 | . 1 Processor . | . . Hackware . | . . Protection . | . . Artifact . | . . Weapon 2 | . 2 Energy Gun 1 | . 1 Energy Cannon . | . . Ballistic Gun 1 | . 1 Ballistic Cannon . | . . Launcher . | . . Special Weapon . | . . Impact Weapon . | . . Slashing Weapon . | . . Piercing Weapon . | . . Special Melee Weapon . | . . Unidentified Prototypes . | . . Parts Lost 4 | . 4 Power . | . . Propulsion 2 | . 2 Utility . | . . Weapon 2 | . 2 Highest Loss Streak 4 | . 4 To Critical Strikes . | . . Average Backups 2 | 3 1 Power . | . . Propulsion . | 1 . Utility . | . . Weapon . | 1 . Tool/Special . | . . Unused Backups 2 | 2 . Power . | . . Propulsion 2 | 2 . Utility . | . . Weapon . | . . Tool/Special . | . . Average Slot Usage (%) 32 | . 32 Leg 13 | . 13 Storage 11 | . 11 Energy Gun 2 | . 2 Ballistic Gun 6 | . 6 Peak Build Rating 5 | 3 5 Average Rating 1 | . 2 On Entrance . | . . Naked Turns 25 | . 25 Heaviest Build 9 | 5 9 Greatest Support 20 | 20 20 Greatest Overweight (x) 1 | 1 1 Average Overweight (x) . | . . Largest Inventory Capacity 8 | 5 8 Average Capacity 6 | 5 7 Most Carried 5 | 5 5 Average Carried 1 | 4 1 Final Capacity 8 | 5 8 Final Carried 5 | 5 . Class Distribution -------------------- 100% | Mutant Dominant Class ---------------- Mutant | -10/Materials Resources | -11 -10 ----------- Run | Yrd Mat Matter Collected 197 | 197 . Remotely . | . . Salvage Created 30 | . 30 Parts 6 | . 6 Haulers Intercepted . | . . Recyclers Shooed . | . . Parts Field Recycled . | . . Retrieved Matter . | . . Parts Self-Destructed . | . . Prevented . | . . Kills | -11 -10 ------- Run | Yrd Mat Combat Hostiles Destroyed 2 | . 2 Guns 2 | . 2 Classes Destroyed 1 | . 1 Swarmer 2 | . 2 Best Kill Streak 1 | . 1 Combat Bots Only 1 | . 1 Max Kills in Single Turn 1 | . 1 Gunslinging . | . . Exploded . | . . Melee . | . . Uniques/NPCs Destroyed . | . . Combat | -11 -10 -------- Run | Yrd Mat Hostile Shots Fired 117 | . 117 Missed 52 | . 52 Hits 65 | . 65 Projectile 65 | . 65 Critical Strikes 1 | . 1 Damage Taken 642 | . 642 Core 256 | . 256 Absorbed by Shields . | . . Core Remaining (%) 100 | 100 . Volleys Fired 8 | . 8 Largest 2 | . 2 Hottest 60 | . 60 Shots Fired 9 | . 9 Gun 9 | . 9 Cannon . | . . Launcher . | . . Special . | . . Kinetic 8 | . 8 Thermal . | . . Explosive . | . . Electromagnetic 1 | . 1 Robot Hit Streak 2 | . 2 Robot Miss Streak 3 | . 3 Penetration Max . | . . Secondary Targets 1 | . 1 Max Gunslinging Chain 1 | . 1 Shots Hit Robots 3 | . 3 Core Hits 5 | . 5 Critical Kills . | . . Critical Parts Destroyed . | . . Critical Strikes . | . . Melee Attacks . | . . Impact . | . . Slashing . | . . Piercing . | . . Sneak Attacks . | . . Combat Hostiles . | . . Follow-up Attacks . | . . Damage Inflicted 77 | . 77 Guns 67 | . 67 Cannons . | . . Explosions . | . . Melee . | . . Ramming 10 | . 10 Kinetic 56 | . 56 Thermal . | . . Explosive . | . . Electromagnetic 11 | . 11 Impact . | . . Slashing . | . . Piercing . | . . Highest Corruption . | . . Average Corruption . | . . Corruption Purged . | . . Corruption Blocked . | . . Overload Shots . | . . Overflow Damage . | . . Projectiles . | . . Explosions . | . . Melee . | . . Knockbacks . | . . Impact . | . . Kinetic . | . . Secondary . | . . Self-Inflicted Damage 2 | . 2 Shots . | . . Rammed 2 | . 2 Targets Rammed 7 | . 7 Kicked 5 | . 5 Crushed . | . . Highest Temperature 2 | . 2 Average Temperature 2 | . 2 Received Heat Transfer 177 | . 177 Siege Activations . | . . Martial Activations . | . . Shielding Activations . | . . Robots Disrupted . | . . Combat Hostiles . | . . Robots Corrupted . | . . Combat Hostiles . | . . Parts Fried . | . . Impact Corruptions . | . . Robots Melted . | . . Combat Hostiles . | . . Parts Melted . | . . Heat Transferred . | . . Parts Sabotaged . | . . Parts Stolen . | . . Parts Stripped . | . . Power Chain Reactions . | . . Alert | -11 -10 ------- Run | Yrd Mat Maximum Alert Level . | . . Low Security (%) 100 | 100 100 Level 1 . | . . Level 2 . | . . Level 3 . | . . Level 4 . | . . Level 5 . | . . High Security . | . . Max Security . | . . Peak Influence 55 | . 55 Initial . | . . Average 17 | . 24 Influence Increases 95 | . 95 Destroy 0b10 Robot/C 40 | . 40 Destroy Leader 10 | . 10 Lose Combat Pursuer 45 | . 45 Influence Decreases 90 | . 90 Time Decay 50 | . 50 Lost Part 40 | . 40 Squads Dispatched 1 | . 1 Investigation . | . . Extermination . | . . Reinforcement 1 | . 1 Assault . | . . Garrison . | . . Intercept . | . . Searches Triggered . | . . Construction Impeded . | . . Haulers Reinforced . | . . Active Scanning Responses . | . . Cargo Convoy Interrupts . | . . Stealth | -11 -10 --------- Run | Yrd Mat Distress Signals . | . . Communications Jammed . | . . Distress Signals . | . . Times Spotted 9 | . 9 Peak Tracking Total 7 | . 7 Tactical Retreats 1 | . 1 Traps | -11 -10 ------- Run | Yrd Mat Traps Triggered . | . . Indirectly . | . . Trap Hack Attempts . | . . Triggered . | . . Disarmed . | . . Reprogrammed . | . . Reused . | . . Traps Extracted . | . . Installed . | . . Triggered . | . . Machines | -11 -10 ---------- Run | Yrd Mat Machines Disabled . | . . Max in Single Turn . | . . Machines Repaired . | . . Machines Dismantled . | . . Machines Sabotaged . | . . Overloaded Fab Kills . | . . Hacking | -11 -10 --------- Run | Yrd Mat Machines Accessed . | . . Terminals . | . . Fabricators . | . . Repair Stations . | . . Recycling Units . | . . Scanalyzers . | . . Garrison Access . | . . Total Hacks . | . . Successful . | . . Failed . | . . Catastrophic . | . . Database Lockouts . | . . Manual . | . . Terminals . | . . Fabricators . | . . Repair Stations . | . . Recycling Units . | . . Scanalyzers . | . . Garrison Access . | . . Terminal Hacks . | . . Fabricator Hacks . | . . Repair Station Hacks . | . . Recycling Unit Hacks . | . . Scanalyzer . | . . Garrison Access Hacks . | . . Unauthorized Hacks . | . . Terminals . | . . Fabricators . | . . Repair Stations . | . . Recycling Units . | . . Scanalyzers . | . . Garrison Access . | . . Data Cores Recovered . | . . Used . | . . Hacking Detections . | . . Full Trace Events . | . . Feedback Events . | . . Feedback Blocked . | . . Robot Schematics Acquired . | . . Robots Built . | . . Authchips . | . . Time . | . . Total Robot Build Rating . | . . Part Schematics Acquired . | . . Parts Built . | . . Authchips . | . . Time . | . . Total Part Build Rating . | . . Parts Repaired . | . . Time . | . . Parts Recycled . | . . Recycled Matter . | . . Retrieved Matter . | . . Retrieved Components . | . . Parts Scanalyzed . | . . Part Schematics Acquired . | . . Parts Damaged . | . . Bothacking | -11 -10 ------------ Run | Yrd Mat Used RIF Installer . | . . Robots Hacked . | . . Non-combat . | . . Combat . | . . Robot Hacks Applied . | . . Relay Couplers Released . | . . Fabnet Peak Effective % . | . . Robots Rewired . | . . Allies Hacked . | . . Hacks Repelled . | . . Allies | -11 -10 -------- Run | Yrd Mat Total Allies . | . . Largest Group . | . . Highest-Rated Group . | . . Highest-Rated Ally . | . . Total Orders . | . . Ally Attacks . | . . Total Damage . | . . Kills . | . . Allies Corrupted . | . . Allies Melted . | . . Intel | -11 -10 ------- Run | Yrd Mat Active Infowar (turns) . | . . Robot Analysis Total . | . . Derelict Logs Recovered . | . . Drone Launches . | . . Drone Recoveries . | . . Exploration | -11 -10 ------------- Run | Yrd Mat Turns Passed 182 | 51 131 Spaces Moved 173 | 57 116 Core 123 | 51 72 Treads . | . . Legs 50 | 6 44 Wheels . | . . Hover . | . . Flight . | . . Fastest Speed 50 | 50 50 Average Speed 78 | 61 86 Slowest Speed 120 | 120 120 Overloaded Moves . | . . Propulsion Burnouts . | . . Robots Hopped . | . . Potential Cave-ins . | . . Cave-ins Triggered . | . . Exploration Rate (%) 13 | 2 25 Regions Visited 1 Branch Regions . Pre-discovered Areas . | . . Known Exits Taken . | . . Unknown Exits Taken 1 | 1 . Scrap Searched . | . . Spaces Dug . | . . Terrain Destroyed . | . . Melee . | . . Projectile . | . . AOE . | . . Terrain Rammed . | . . Walls Destroyed . | . . Machines Disabled . | . . Actions | -11 -10 --------- Run | Yrd Mat Total 210 | 73 137 Wait 1 | . 1 Move 172 | 56 116 Hop . | . . Pick Up 7 | 7 . Fast Attach 4 | 4 . Attach 5 | . 5 Detach . | . . Swap . | . . Drop 6 | 6 . Fire 8 | . 8 Melee . | . . Ram 2 | . 2 Kick 5 | . 5 Crush . | . . Escape Stasis . | . . Rewire . | . . Trap . | . . Miscellaneous . | . . Route ------- -11/Scrapyard -10/Materials History --------- Turn | Location | Event 8 | -11/Scrapyard | Discovered new exit (range 15) 52 | -11/Scrapyard | Entered Materials 145 | -10/Materials | Core integrity fell below 50% 173 | -10/Materials | Core integrity fell below 20% 183 | -10/Materials | Destroyed by S-10 Pest with Light Assault Rifle Last Messages --------------- K-01 Serf collects debris. R-06 Scavenger collects Lgt. Assault Rifle. T-07 Excavator is excavating. Aluminum Leg destroyed. T-07 Excavator is excavating. S-10 Pest destroyed. T-07 Excavator is excavating. Assault Rifle destroyed. Kicked S-10 Pest. Kicked S-10 Pest out of the way. Kicked S-10 Pest. Aluminum Leg destroyed. Slammed into S-10 Pest. K-01 Serf collects debris. T-07 Excavator is excavating. K-01 Serf collects debris. Critical hit (Burn: +37). K-01 Serf collects debris. R-06 Scavenger destroyed. K-01 Serf collects debris. Map ----- +----------------------------------------------------+ | ??????????????##########?????????????????????????? | | ?????########## #?????????????????????????? | | ?????# # #?????????????????????????? | | ?????# # /?????????????????????????? | | ?????# #? ? ??????????????????????? | | ?????# #? # #???????????? ????????? | | ?????+ #?? ?# #???????????? ????????? | | ????# #?? ?# #???????????? ????????? | | ??# #??? ??# #???????????# #???????? | | # #??? ??# #???????????# #???????? | | + #???#/#??# #???????????# #???????? | | ############+##???# #??# #???????????# #???????? | | ?????####### #???## ##?# #??????????## ##??????? | | ?????# # #???# #?# #??????????# #??????? | | ?????# # ##### #?# #??????????# #??????# | | ?????# + #?# #??????????# ######## | | ?????# # ##### #?# #??????????+ ## ## | | ?????#######+##### #?# #??????????# # ## | | ???????# [ ] # #?# #??????????# # ?# | | ???????# # ### ############ ### #### | | ???????# """ """ # % # | | ???????# """ """ + = k % + | | ???????# """ """ # *%* # | | ???????# """ """ # = g g # | | ???????# """ """ # s # | | ????????? # @ # | | ?????????######### #############+############### | | ?????????????????#####?????????? "????????????# | | ?????????????????????????????? !! ""R??????????# | | ????????????????????????????# ! "" " ????????? | | ????????????????????????????# ????????? | | ????????????????????????????# #???????? | | ????????????????????????????##############???????? | | | | | | | | | | | | | | | | | | | | | | | | | | | | | | | | | | | +----------------------------------------------------+ Best States ------------- Heat Dissipation 25 Energy Generation 10 Energy Capacity 250 Matter Stores 257 Matter Capacity 300 Sight Range 16 Terrain Scan Density 10 Evasion (%) 55 Item Schematics ----------------- None Robot Schematics ------------------ None Fabricated ------------ Nothing Repaired ---------- Nothing Alien Tech Used ----------------- None Achievements -------------- None Challenges ------------ None Game ------ Seed BeamChainMask Manual? 0 Play Time 00:05:49 Cumulative 25.2 hours Start 2025.09.05 @ 07:20:41 End 2025.09.05 @ 07:24:57 Sessions 1 Manual Loads 0 Difficulty Rogue Special Mode None Game No. 29 Rogue 2 Adventurer 0 Explorer 27 Win Type - Total 0 Types 0/0/0/0/0/0/0/0/0/0 Lore% 17 Gallery% 30 Achievement% 24 Wizard Run 0 Options --------- Layout 2 ASCII 0 Keyboard 0 Movement Mouse Keybinds 0 Fullscreen 2 Font 16/SmallcapsGlow Map View 50x44 Zoom Use 0% Tactical HUD 0 Map Filters NONE Filters NONE Steam X RUN: d9208543-c2e9-497a-aac1-9499418f9478